bitfinex/quotes_BTCUSD_20220731
["timestamp","ask_amount","ask_price","bid_price","bid_amount"]
[1659310260958,0.0015,23338.0,23335.0,1.271216]
[1659310261197,0.0015,23338.0,23335.0,1.192216]
[1659310261944,0.0015,23338.0,23335.0,1.233216]
[1659310263274,0.0015,23338.0,23335.0,1.085169]
[1659310263965,0.0805,23338.0,23335.0,1.192209]
[1659310265268,0.0015,23338.0,23335.0,1.085169]
[1659310265498,0.43020616,23338.0,23335.0,0.685169]
[1659310265982,0.50120616,23338.0,23335.0,0.685169]
[1659310267480,0.43020616,23338.0,23335.0,0.69781248]
[1659310267924,0.46220616,23338.0,23335.0,0.77481248]
[1659310269770,0.46220616,23338.0,23335.0,0.69781248]
[1659310269771,0.43020616,23338.0,23335.0,0.69781248]
[1659310269992,0.46120616,23338.0,23335.0,1.20202048]
[1659310270210,0.46120616,23338.0,23335.0,0.98789948]
[1659310271350,0.43020616,23338.0,23335.0,0.91189948]
[1659310272058,0.46120616,23338.0,23335.0,0.98789948]
[1659310273173,0.46120616,23338.0,23335.0,0.48372648]
[1659310273391,0.43020616,23338.0,23335.0,0.48372648]
[1659310273934,0.45420616,23338.0,23335.0,0.55972648]
[1659310274778,0.45470616,23338.0,23335.0,0.55972648]
[1659310275246,0.43070616,23338.0,23335.0,0.48372648]
[1659310275963,0.45470616,23338.0,23335.0,0.55972648]
[1659310276403,0.45470616,23338.0,23335.0,0.13155348]
[1659310276631,0.45470616,23338.0,23335.0,0.55978948]
[1659310277327,0.43070616,23338.0,23335.0,0.48378948]
[1659310278046,0.45470616,23338.0,23335.0,0.55978948]
[1659310278729,0.4980476,23338.0,23335.0,0.13155348]
[1659310278962,0.4980476,23338.0,23335.0,0.11891]
[1659310278963,0.35,23336.0,23335.0,0.11891]
[1659310279191,0.05,23334.0,23333.0,0.03148046]
[1659310279452,0.47870616,23334.0,23333.0,0.03148046]
[1659310279683,0.47870616,23334.0,23330.0,0.04291]
[1659310279684,0.52870616,23334.0,23330.0,0.04291]
[1659310279916,0.1,23330.0,23326.0,0.04551961]
[1659310280287,0.05,23327.0,23326.0,0.04551961]
[1659310280291,0.05,23327.0,23323.0,0.04291]
[1659310280492,0.47870616,23326.0,23323.0,0.04291]
[1659310280719,0.4720476,23326.0,23323.0,0.04291]
[1659310282011,0.42870616,23325.0,23323.0,0.11991]
[1659310282187,0.42870616,23325.0,23323.0,0.077]
[1659310283230,0.42870616,23326.0,23324.0,0.01264348]
[1659310283669,0.42870616,23326.0,23321.0,0.88041835]
[1659310283901,0.42870616,23326.0,23324.0,0.078]
[1659310284127,0.42870616,23331.0,23324.0,0.078]
[1659310284334,0.42870616,23331.0,23325.0,0.01264348]
[1659310285425,0.42870616,23331.0,23326.0,0.1]
[1659310285635,1.00390616,23332.0,23326.0,0.4]
[1659310285845,0.078,23331.0,23327.0,0.01264348]
[1659310286540,0.078,23331.0,23327.0,0.11972248]
[1659310287135,1.00390616,23332.0,23327.0,0.11972248]
[1659310287340,0.42870616,23332.0,23327.0,0.33388448]
[1659310287628,0.42870616,23332.0,23328.0,0.3]
[1659310287901,0.47170616,23332.0,23328.0,0.3]
[1659310288975,0.00073131,23331.0,23328.0,0.3]
[1659310289448,0.00073131,23331.0,23327.0,0.107079]
[1659310289878,0.05473131,23331.0,23327.0,0.107079]
[1659310290982,0.5220476,23330.0,23326.0,0.41296099]
[1659310291207,0.05,23328.0,23326.0,0.01296099]
[1659310291456,0.05,23328.0,23322.0,0.04291]
[1659310291669,0.05,23328.0,23322.0,0.47161616]
[1659310291898,0.42870616,23327.0,23326.0,0.076]
[1659310292113,0.4720476,23327.0,23326.0,0.076]
[1659310292531,0.42870616,23327.0,23326.0,0.076]
[1659310293240,0.42870616,23327.0,23322.0,0.04291]
[1659310293695,0.42870616,23327.0,23322.0,0.35555348]
[1659310293925,0.45270616,23327.0,23323.0,0.3]
[1659310294151,0.42870616,23326.0,23323.0,0.3]
[1659310294571,0.42870616,23326.0,23323.0,0.407101]
[1659310294830,0.024,23327.0,23324.0,0.82870616]
[1659310295047,0.024,23327.0,23325.0,0.407088]
[1659310295263,0.00073131,23331.0,23325.0,0.41973148]
[1659310295516,0.42943747,23331.0,23326.0,0.01264348]
[1659310295753,0.05,23329.0,23322.0,0.19475641]
[1659310295962,0.42870616,23328.0,23322.0,2.41108615]
[1659310296418,0.42870616,23328.0,23322.0,2.42372963]
[1659310296878,0.42870616,23328.0,23322.0,2.46847304]
[1659310297303,0.42870616,23328.0,23323.0,0.107098]
[1659310297521,0.42870616,23328.0,23323.0,0.407098]
[1659310297728,0.42870616,23328.0,23324.0,0.01264348]
[1659310297934,0.45270616,23328.0,23324.0,0.01264348]
[1659310298368,0.45270616,23328.0,23324.0,0.11974348]
[1659310298811,0.45270616,23328.0,23324.0,0.1071]
[1659310299015,0.45270616,23328.0,23325.0,0.01264348]
[1659310299301,0.42870616,23328.0,23325.0,0.01264348]
[1659310299852,0.49370616,23328.0,23325.0,0.01264348]
[1659310300274,0.49370616,23328.0,23325.0,0.41973848]
[1659310300708,0.49370616,23328.0,23325.0,0.407095]
[1659310300946,0.49370616,23328.0,23326.0,0.01264348]
[1659310301147,0.42870616,23328.0,23326.0,0.01264348]
[1659310301591,0.4720476,23328.0,23326.0,0.01264348]
[1659310301796,0.42870616,23327.0,23323.0,0.3]
[1659310302239,0.42870616,23327.0,23322.0,2.42372963]
[1659310303031,0.42870616,23327.0,23322.0,2.53084063]
[1659310303632,0.42870616,23327.0,23323.0,0.3]
[1659310303833,0.45270616,23327.0,23323.0,0.3]
[1659310304043,0.42870616,23326.0,23323.0,0.3]
[1659310304279,0.42870616,23326.0,23323.0,0.63395848]
[1659310305796,0.46270616,23326.0,23323.0,0.71195848]
[1659310306671,0.46270616,23326.0,23323.0,0.70695848]
[1659310307176,0.42870616,23326.0,23323.0,0.62895848]
[1659310307413,0.33567494,23329.0,23323.0,0.62895848]
[1659310307644,0.42870616,23328.0,23323.0,0.62895848]
[1659310307883,0.034,23326.0,23323.0,0.62895848]
[1659310308145,0.034,23326.0,23323.0,0.70695848]
[1659310308788,0.034,23326.0,23323.0,0.694315]
[1659310309671,0.034,23326.0,23323.0,0.70695848]
[1659310309880,0.034,23326.0,23323.0,0.70195848]
[1659310310832,0.034,23326.0,23323.0,0.41195848]
[1659310311034,0.07734144,23326.0,23323.0,0.41195848]
[1659310311260,0.33567494,23327.0,23323.0,0.33395848]
[1659310311471,0.7643811,23327.0,23323.0,0.33395848]
[1659310311685,0.42870616,23327.0,23323.0,0.33395848]
[1659310311899,0.45270616,23327.0,23323.0,0.40995848]
[1659310312195,0.45270616,23327.0,23324.0,0.7]
[1659310312417,0.024,23327.0,23324.0,0.80709]
[1659310312638,0.024,23327.0,23325.0,0.01264348]
[1659310313079,0.024,23327.0,23325.0,0.11973148]
[1659310313289,0.33690625,23331.0,23325.0,0.11973148]
[1659310313509,0.42870616,23330.0,23326.0,0.01264348]
[1659310314002,0.42870616,23330.0,23326.0,0.11973048]
[1659310314434,0.42870616,23330.0,23326.0,0.41973048]
[1659310314862,0.84361241,23331.0,23326.0,0.41973048]
[1659310315769,0.76561241,23331.0,23326.0,0.41973048]
[1659310316047,0.84361241,23331.0,23326.0,0.41973048]
[1659310317270,0.76561241,23331.0,23326.0,0.41973048]
[1659310318010,0.84361241,23331.0,23326.0,0.41973048]
[1659310318223,0.84361241,23331.0,23326.0,0.41206957]
[1659310318445,0.89026357,23331.0,23326.0,0.42492886]
[1659310318721,0.89026357,23331.0,23326.0,0.01285929]
[1659310318722,0.47870616,23330.0,23326.0,0.01285929]
[1659310318942,0.80772254,23329.0,23326.0,0.01285929]
[1659310319161,0.42870616,23328.0,23325.0,0.03138695]
[1659310319395,0.47535732,23328.0,23325.0,0.03138695]
[1659310319621,0.42870616,23327.0,23323.0,0.97532]
[1659310320131,0.42870616,23327.0,23323.0,1.01823]
[1659310320563,0.00866828,23326.0,23324.0,0.3]
[1659310320798,0.42870616,23326.0,23324.0,0.3]
[1659310321033,0.47535732,23326.0,23324.0,0.407107]
[1659310321250,0.42870616,23326.0,23324.0,0.3]
[1659310321944,0.42870616,23326.0,23324.0,0.378]
[1659310323059,0.42870616,23326.0,23324.0,0.485112]
[1659310323272,0.42870616,23326.0,23324.0,0.407112]
[1659310324012,0.42870616,23326.0,23325.0,0.01264348]
[1659310324224,0.4720476,23326.0,23325.0,0.11974948]
[1659310324434,0.42870616,23326.0,23325.0,0.11974948]
[1659310325359,0.59793131,23331.0,23325.0,0.11974948]
[1659310325603,1.02663747,23331.0,23325.0,0.21974948]
[1659310325827,1.02663747,23331.0,23326.0,0.01264348]
[1659310326056,1.02663747,23331.0,23327.0,0.107094]
[1659310326303,1.02663747,23331.0,23327.0,0.407094]
[1659310326526,1.02663747,23331.0,23328.0,0.01264348]
[1659310326527,1.34170154,23331.0,23328.0,0.01264348]
[1659310326739,1.34170154,23331.0,23328.0,0.11973348]
[1659310328047,1.38270154,23331.0,23328.0,0.11973348]
[1659310329170,1.06763747,23331.0,23328.0,0.11973348]
[1659310329426,1.02663747,23331.0,23329.0,0.01264348]
[1659310329832,1.02663747,23331.0,23330.0,0.321253]
[1659310330044,0.50893747,23331.0,23330.0,0.621253]
[1659310330738,0.50893747,23331.0,23330.0,0.3]
[1659310330957,0.50893747,23331.0,23329.0,0.3]
[1659310331173,0.42993747,23331.0,23329.0,0.3]
[1659310331843,0.50893747,23331.0,23329.0,0.407093]
[1659310332283,0.54361063,23331.0,23329.0,0.407093]
[1659310332501,0.42870616,23330.0,23329.0,0.107093]
[1659310332712,0.42870616,23330.0,23326.0,0.0131122]
[1659310332967,0.42870616,23330.0,23328.0,0.107097]
[1659310333177,0.4720476,23330.0,23328.0,0.107097]
[1659310333344,0.42870616,23329.0,23328.0,0.407097]
[1659310333741,0.42870616,23329.0,23328.0,0.3]
[1659310334806,0.42870616,23329.0,23326.0,0.7]
[1659310335017,0.038,23330.0,23328.0,0.91974148]
[1659310335219,0.574,23334.0,23329.0,0.3]
[1659310335440,0.42870616,23333.0,23330.0,0.107073]
[1659310335666,0.42870616,23333.0,23330.0,0.21971648]
[1659310336466,0.42870616,23333.0,23330.0,0.11264348]
[1659310337338,0.42870616,23333.0,23330.0,0.21972148]
[1659310337770,0.50770616,23333.0,23330.0,0.21972148]
[1659310338044,0.42870616,23332.0,23330.0,0.21972148]
[1659310338276,0.4720476,23332.0,23330.0,0.21972148]
[1659310338496,0.42870616,23331.0,23330.0,0.207078]
[1659310338722,0.42870616,23331.0,23328.0,0.107094]
[1659310339156,0.42870616,23331.0,23328.0,0.12003048]
[1659310339850,0.45370616,23331.0,23328.0,0.19603048]
[1659310340076,0.45370616,23331.0,23328.0,0.49603048]
[1659310341251,0.42870616,23331.0,23328.0,0.42003048]
[1659310341920,0.50670616,23331.0,23328.0,0.42003048]
[1659310343666,0.42870616,23331.0,23328.0,0.42003048]
[1659310343871,0.47070616,23331.0,23328.0,0.42003048]
[1659310345634,0.42870616,23331.0,23328.0,0.42003048]
[1659310345859,0.47070616,23331.0,23328.0,0.42003048]
[1659310347146,0.42870616,23331.0,23328.0,0.42003048]
[1659310347569,0.42870616,23331.0,23328.0,0.84836248]
[1659310347796,0.42870616,23331.0,23328.0,0.91100596]
[1659310348008,0.46970616,23331.0,23328.0,0.91100596]
[1659310348250,0.46970616,23331.0,23329.0,0.321222]
[1659310348699,0.46970616,23331.0,23330.0,0.66264348]
[1659310348939,0.46970616,23331.0,23330.0,1.19802048]
[1659310349874,0.50770616,23331.0,23330.0,1.19802048]
[1659310350308,5.67e-06,23331.0,23330.0,2.03369542]
[1659310350562,0.5833,23338.0,23330.0,2.41240158]
[1659310350765,1.01200616,23338.0,23333.0,0.1]
[1659310351002,1.01200616,23338.0,23334.0,0.749367]
[1659310351204,1.01200616,23338.0,23335.0,0.3]
[1659310351866,1.01200616,23338.0,23335.0,0.379]
[1659310352316,1.01200616,23338.0,23335.0,0.079]
[1659310352554,0.5833,23338.0,23335.0,0.079]
[1659310353198,0.0025,23338.0,23334.0,0.11968848]
[1659310353433,0.0025,23338.0,23334.0,0.01264348]
[1659310353902,0.0025,23338.0,23334.0,0.09164348]
[1659310354810,0.05,23335.0,23334.0,0.079]
[1659310355222,0.05,23335.0,23333.0,0.1]
[1659310355668,0.09665116,23335.0,23330.0,0.3211171]
[1659310355929,0.05,23335.0,23333.0,0.032]
[1659310357369,0.05,23335.0,23330.0,0.21415]
[1659310357585,0.05,23335.0,23330.0,0.321232]
[1659310358042,0.05,23335.0,23333.0,0.079]
[1659310358272,0.05,23335.0,23333.0,0.400204]
[1659310358434,0.05,23335.0,23334.0,0.3]
[1659310358677,0.05,23335.0,23334.0,0.407067]
[1659310359893,0.05,23335.0,23334.0,0.473067]
[1659310360123,0.05,23335.0,23334.0,0.366]
[1659310361466,0.05,23335.0,23334.0,0.066]
[1659310361884,0.05,23335.0,23334.0,0.132]
[1659310362367,0.39851762,23335.0,23334.0,0.132]
[1659310362601,0.39851762,23335.0,23330.0,0.214164]
[1659310362838,0.53716033,23335.0,23334.0,0.00163573]
[1659310363074,1.36651165,23335.0,23334.0,0.00327146]
[1659310363301,1.40985309,23335.0,23334.0,0.00327146]
[1659310364041,1.44485309,23335.0,23334.0,0.08127146]
[1659310365218,1.38526118,23335.0,23328.0,0.01293648]
[1659310365442,0.42870616,23333.0,23328.0,0.31293648]
[1659310365659,0.47535732,23333.0,23328.0,0.3]
[1659310365876,0.47870616,23332.0,23328.0,0.377]
[1659310366097,0.42870616,23331.0,23328.0,0.377]
[1659310366323,0.05,23330.0,23328.0,0.377]
[1659310366590,0.42870616,23329.0,23328.0,0.377]
[1659310367062,0.42870616,23329.0,23328.0,0.484095]
[1659310367281,0.42870616,23329.0,23328.0,0.3]
[1659310367496,0.42870616,23329.0,23328.0,0.407096]
[1659310367971,0.42870616,23329.0,23328.0,0.486096]
[1659310368224,0.42870616,23329.0,23328.0,0.379]
[1659310369181,0.42870616,23329.0,23328.0,0.079]
[1659310369407,0.42870616,23329.0,23328.0,0.379]
[1659310370320,0.42870616,23329.0,23328.0,0.486096]
[1659310370509,0.47870616,23330.0,23328.0,0.186096]
[1659310371321,0.42870616,23330.0,23328.0,0.107096]
[1659310371553,0.47870616,23329.0,23327.0,0.35547683]
[1659310371792,0.42870616,23328.0,23327.0,0.35547683]
[1659310373902,0.42870616,23328.0,23327.0,0.43447683]
[1659310374239,0.47870616,23328.0,23327.0,0.079]
[1659310374455,0.87722378,23328.0,23327.0,0.079]
[1659310374673,0.1899926,23327.0,23326.0,0.124]
[1659310374885,1.2703757,23327.0,23326.0,0.124]
[1659310375554,0.9663817,23327.0,23326.0,0.124]
[1659310375814,1.0163817,23327.0,23326.0,0.124]
[1659310376012,0.72869876,23327.0,23326.0,0.124]
[1659310376461,1.0763817,23327.0,23326.0,0.124]
[1659310376673,0.72869876,23327.0,23326.0,0.124]
[1659310377324,0.66869876,23327.0,23326.0,0.124]
[1659310378012,0.70469876,23327.0,23326.0,0.124]
[1659310379153,0.75469876,23327.0,23326.0,0.124]
[1659310379619,1.00869276,23327.0,23326.0,0.124]
[1659310379827,0.70469876,23327.0,23326.0,0.124]
[1659310380725,1.05869276,23327.0,23326.0,0.124]
[1659310380955,1.00869276,23327.0,23326.0,0.124]
[1659310381169,0.62535732,23327.0,23326.0,0.124]
[1659310381843,0.66135732,23327.0,23326.0,0.124]
[1659310382509,0.71135732,23327.0,23326.0,0.124]
[1659310382961,0.66135732,23327.0,23326.0,0.124]
[1659310383167,0.62535732,23327.0,23326.0,0.124]
[1659310384263,0.92935132,23327.0,23326.0,0.124]
[1659310384490,0.62535732,23327.0,23326.0,0.124]
[1659310384713,0.66135732,23327.0,23326.0,0.124]
[1659310384919,0.70469876,23327.0,23326.0,0.124]
[1659310385801,0.74069876,23327.0,23326.0,0.124]
[1659310386049,1.04469276,23327.0,23326.0,0.124]
[1659310386255,0.74069876,23327.0,23326.0,0.124]
[1659310386524,0.97269276,23327.0,23326.0,0.124]
[1659310386697,0.66869876,23327.0,23326.0,0.124]
[1659310387629,0.97269276,23327.0,23326.0,0.124]
[1659310387868,0.66869876,23327.0,23326.0,0.124]
[1659310388076,0.57535732,23327.0,23326.0,0.124]
[1659310388303,0.42870616,23327.0,23326.0,0.124]
[1659310388757,0.46470616,23327.0,23326.0,0.13664348]
[1659310389240,0.46470616,23327.0,23326.0,0.1192]
[1659310389462,0.51470616,23327.0,23326.0,0.1192]
[1659310389898,0.57670616,23327.0,23326.0,0.1192]
[1659310390124,0.54070616,23327.0,23326.0,0.1192]
[1659310391260,0.47870616,23327.0,23326.0,0.1192]
[1659310391960,0.52370616,23327.0,23326.0,0.1192]
[1659310392192,0.47370616,23327.0,23326.0,0.1192]
[1659310393089,0.42870616,23327.0,23326.0,0.226305]
[1659310393307,0.4720476,23327.0,23326.0,0.1192]
[1659310393783,0.48770616,23327.0,23326.0,0.1192]
[1659310395152,0.5310476,23327.0,23326.0,0.1192]
[1659310395470,0.4720476,23327.0,23326.0,0.1192]
[1659310395603,0.42870616,23327.0,23326.0,0.1192]
[1659310396049,0.48970616,23327.0,23326.0,0.1192]
[1659310396272,0.5330476,23327.0,23326.0,0.1192]
[1659310396504,0.48970616,23327.0,23326.0,0.1192]
[1659310397246,0.42870616,23327.0,23326.0,0.1192]
[1659310398060,0.48970616,23327.0,23326.0,0.1192]
[1659310399216,0.42870616,23327.0,23326.0,0.1319725]
[1659310400090,0.48970616,23327.0,23326.0,0.1319725]
[1659310400317,0.48970616,23327.0,23326.0,0.2390815]
[1659310400556,0.48970616,23327.0,23326.0,0.5390815]
[1659310400773,0.48970616,23327.0,23326.0,0.4319725]
[1659310401159,0.48970616,23327.0,23326.0,0.5390805]
[1659310401361,0.42870616,23327.0,23326.0,0.5390805]
[1659310401568,0.42870616,23327.0,23326.0,0.4319725]
[1659310401949,0.48970616,23327.0,23326.0,0.4319725]
[1659310402150,0.48970616,23327.0,23326.0,0.1319725]
[1659310402386,0.48970616,23327.0,23326.0,0.4319725]
[1659310403351,0.42870616,23327.0,23326.0,0.4319725]
[1659310403571,0.42870616,23327.0,23326.0,0.1319725]
[1659310404039,0.48970616,23327.0,23326.0,0.1319725]
[1659310405285,0.42870616,23327.0,23326.0,0.1319725]
[1659310405890,0.48970616,23327.0,23326.0,0.1319725]
[1659310406554,0.48970616,23327.0,23326.0,0.1819725]
[1659310406812,0.48970616,23327.0,23326.0,0.4819725]
[1659310407229,0.42870616,23327.0,23326.0,0.4819725]
[1659310407711,0.42870616,23327.0,23326.0,0.5390815]
[1659310407926,0.48970616,23327.0,23326.0,0.5390815]
[1659310409086,0.48970616,23327.0,23326.0,0.4319725]
[1659310409291,0.42870616,23327.0,23326.0,0.4319725]
[1659310409737,0.42870616,23327.0,23326.0,0.1319725]
[1659310409937,0.48970616,23327.0,23326.0,0.4319725]
[1659310410690,0.48970616,23327.0,23326.0,0.5390815]
[1659310410940,0.5330476,23327.0,23326.0,0.5390815]
[1659310411154,0.4720476,23327.0,23326.0,0.5390815]
[1659310411370,0.42870616,23327.0,23326.0,0.5390815]
[1659310411787,0.48970616,23327.0,23326.0,0.4319725]
[1659310412242,0.48961433,23327.0,23326.0,0.4319725]
[1659310412929,0.48961433,23327.0,23326.0,0.1319725]
[1659310415309,0.42861433,23327.0,23326.0,0.1319725]
[1659310415532,0.42861433,23327.0,23326.0,0.4319725]
[1659310415770,0.42861433,23327.0,23326.0,0.1319725]
[1659310416002,0.49828261,23327.0,23326.0,0.1319725]
[1659310416576,0.48961433,23327.0,23326.0,0.1319725]
[1659310417286,0.42861433,23327.0,23326.0,0.1319725]
[1659310417920,0.48961433,23327.0,23326.0,0.1319725]
[1659310418659,0.48961433,23327.0,23326.0,0.1819725]
[1659310418875,0.52428749,23327.0,23326.0,0.1319725]
[1659310419092,0.49011433,23327.0,23326.0,0.1319725]
[1659310419760,0.42911433,23327.0,23326.0,0.2390855]
[1659310419980,0.49011433,23327.0,23326.0,0.2390855]
[1659310420205,0.49011433,23327.0,23326.0,0.5390855]
[1659310420431,0.49011433,23327.0,23326.0,0.2390855]
[1659310420646,0.49011433,23327.0,23326.0,0.5390855]
[1659310420870,0.49011433,23327.0,23326.0,0.4319725]
[1659310421143,0.49011433,23327.0,23326.0,0.1319725]
[1659310421363,0.42911433,23327.0,23326.0,0.1319725]
[1659310421588,0.42911433,23327.0,23326.0,0.1819725]
[1659310422036,0.49011433,23327.0,23326.0,0.1819725]
[1659310422286,0.49011433,23327.0,23326.0,0.1319725]
[1659310422495,0.52478749,23327.0,23326.0,0.1319725]
[1659310422719,0.49011433,23327.0,23326.0,0.1319725]
[1659310423407,0.49011433,23327.0,23326.0,0.2390865]
[1659310423408,0.42911433,23327.0,23326.0,0.2390865]
[1659310423910,0.49011433,23327.0,23326.0,0.2390865]
[1659310424354,0.49011433,23327.0,23326.0,0.1319725]
[1659310424794,0.49011433,23327.0,23326.0,0.4819725]
[1659310425020,0.49011433,23327.0,23326.0,0.1819725]
[1659310425241,0.42911433,23327.0,23326.0,0.1319725]
[1659310425925,0.49011433,23327.0,23326.0,0.1319725]
[1659310426418,0.49011433,23327.0,23326.0,0.1819725]
[1659310426620,0.49011433,23327.0,23326.0,0.1319725]
[1659310427279,0.42911433,23327.0,23326.0,0.1319725]
[1659310427980,0.49011433,23327.0,23326.0,0.1319725]
[1659310428193,0.49011433,23327.0,23326.0,0.4819725]
[1659310428654,0.49011433,23327.0,23326.0,0.1319725]
[1659310429035,0.49011433,23327.0,23326.0,0.5890865]
[1659310429261,0.42911433,23327.0,23326.0,0.5890865]
[1659310429713,0.42911433,23327.0,23326.0,0.7533115]
[1659310429918,0.49011433,23327.0,23326.0,0.4533115]
[1659310430155,0.49011433,23327.0,23326.0,0.1319725]
[1659310430366,0.49011433,23327.0,23326.0,0.4319725]
[1659310430575,1.19179127,23327.0,23326.0,0.1192]
[1659310430785,1.23513271,23327.0,23326.0,0.1192]
[1659310431452,0.87644977,23327.0,23326.0,0.1192]
[1659310431805,0.91344977,23327.0,23326.0,0.1192]
[1659310432220,0.82010833,23327.0,23326.0,0.1192]
[1659310432482,0.46611433,23327.0,23326.0,0.1192]
[1659310432901,0.46611433,23327.0,23326.0,0.13184348]
[1659310433128,0.0375,23327.0,23326.0,0.13184348]
[1659310433366,0.0005,23327.0,23326.0,0.13184348]
[1659310433584,0.0005,23327.0,23326.0,0.18184348]
[1659310433797,0.0005,23327.0,23326.0,0.23184348]
[1659310434009,0.0665,23327.0,23326.0,0.23184348]
[1659310434430,0.0665,23327.0,23326.0,0.18184348]
[1659310434664,0.06641132,23327.0,23326.0,0.18184348]
[1659310435316,0.00041132,23327.0,23326.0,0.18184348]
[1659310435788,0.00041132,23327.0,23326.0,0.23184348]
[1659310436013,0.06641132,23327.0,23326.0,0.2192]
[1659310436716,0.06641132,23327.0,23326.0,0.23228941]
[1659310436948,0.06641132,23327.0,23326.0,0.26423238]
[1659310437171,0.06641132,23327.0,23326.0,0.56423238]
[1659310437371,0.00041132,23327.0,23326.0,0.6100718]
[1659310437587,0.00041132,23327.0,23326.0,0.5600718]
[1659310438077,0.06641132,23327.0,23326.0,0.5600718]
[1659310438535,0.06641132,23327.0,23326.0,0.54935415]
[1659310439247,0.00041132,23327.0,23326.0,2.14182573]
[1659310439478,0.00041132,23327.0,23326.0,2.19414279]
[1659310439717,0.00041132,23327.0,23326.0,2.23705279]
[1659310439947,0.00041132,23327.0,23326.0,2.96695279]
[1659310440186,0.00041132,23327.0,23326.0,2.56695279]
[1659310440414,0.00041132,23327.0,23326.0,2.53480279]
[1659310441118,0.00041132,23327.0,23326.0,2.32060979]
[1659310441822,0.00041132,23327.0,23326.0,2.27060979]
[1659310442039,0.00041132,23327.0,23326.0,2.32160979]
[1659310442521,0.00041132,23327.0,23326.0,1.54016631]
[1659310443189,0.00041132,23327.0,23326.0,1.48916631]
[1659310444105,0.00041132,23327.0,23326.0,1.58080979]
[1659310444304,0.00041132,23327.0,23326.0,2.00916379]
[1659310445239,0.00041132,23327.0,23326.0,1.93016379]
[1659310445944,0.06941132,23327.0,23326.0,2.31216379]
[1659310446169,0.06941132,23327.0,23326.0,2.00106379]
[1659310446700,0.06941132,23327.0,23326.0,2.40106379]
[1659310447281,0.00041132,23327.0,23326.0,2.39606379]
[1659310447508,0.00041132,23327.0,23326.0,2.68296379]
[1659310447978,0.00041132,23327.0,23326.0,2.73996379]
[1659310449344,0.00041132,23327.0,23326.0,2.68296379]
[1659310450018,0.00041132,23327.0,23326.0,2.73996379]
[1659310451364,0.00041132,23327.0,23326.0,2.68296379]
[1659310452056,0.00041132,23327.0,23326.0,2.73996379]
[1659310453235,0.00041132,23327.0,23326.0,2.68296379]
[1659310453952,0.00041132,23327.0,23326.0,2.73996379]
[1659310455340,0.00041132,23327.0,23326.0,2.68296379]
[1659310456000,0.00041132,23327.0,23326.0,2.73896379]
[1659310457369,0.00041132,23327.0,23326.0,2.68296379]
[1659310458003,0.00041132,23327.0,23326.0,2.75596379]
[1659310459316,0.00041132,23327.0,23326.0,2.68296379]
[1659310459777,0.00041132,23327.0,23326.0,2.64005379]
[1659310460025,0.00041132,23327.0,23326.0,2.71305379]
[1659310460499,0.00041132,23327.0,23326.0,2.75935817]
[1659310461415,0.00041132,23327.0,23326.0,5.14358488]
[1659310462124,0.00033113,23327.0,23326.0,5.21488769]
[1659310462578,0.00033113,23327.0,23326.0,5.2131905]
[1659310463267,0.00033113,23327.0,23326.0,5.1401905]
[1659310463948,0.00033113,23327.0,23326.0,5.2101905]
[1659310465739,0.00033113,23327.0,23326.0,5.1401905]
[1659310465989,0.00033113,23327.0,23326.0,5.2101905]
[1659310467126,0.00033113,23327.0,23326.0,5.24231292]
[1659310467317,0.00033113,23327.0,23326.0,5.17231292]
[1659310467803,1.13e-06,23327.0,23326.0,6.62391292]
[1659310468060,1.13e-06,23327.0,23326.0,6.78451292]
[1659310468286,0.0025,23338.0,23331.0,0.49451]
[1659310468558,0.0025,23338.0,23335.0,0.1]
[1659310468784,0.0025,23338.0,23335.0,0.45]
[1659310469016,0.0025,23338.0,23335.0,0.59915961]
[1659310469251,0.0025,23338.0,23335.0,15.59915961]
[1659310469970,0.0025,23338.0,23335.0,16.07686577]
[1659310471543,0.0025,23338.0,23335.0,16.50499077]
[1659310471755,0.0025,23338.0,23335.0,16.45599077]
[1659310471994,0.0025,23338.0,23335.0,15.74628461]
[1659310472203,0.0025,23338.0,23335.0,15.31815961]
[1659310472631,0.0025,23338.0,23335.0,15.74630161]
[1659310472633,0.0025,23338.0,23335.0,16.19790161]
[1659310472853,0.0025,23338.0,23335.0,15.75889048]
[1659310473090,0.0025,23338.0,23335.0,15.22371348]
[1659310473330,0.0025,23338.0,23335.0,15.20471348]
[1659310473554,0.0025,23338.0,23335.0,15.31175348]
[1659310474006,0.0025,23338.0,23335.0,15.27371348]
[1659310474450,0.43120616,23338.0,23335.0,15.30544423]
[1659310475347,0.43120616,23338.0,23335.0,15.23644423]
[1659310475810,0.43120616,23338.0,23335.0,15.34348623]
[1659310476033,0.43120616,23338.0,23335.0,15.42248623]
[1659310476261,0.43120616,23338.0,23335.0,15.52953023]
[1659310476546,0.43120616,23338.0,23335.0,15.57244023]
[1659310476782,0.43120616,23338.0,23335.0,15.72423159]
[1659310477239,0.43120616,23338.0,23335.0,15.64523159]
[1659310477692,0.43120616,23338.0,23335.0,15.53818759]
[1659310477919,0.43120616,23338.0,23335.0,15.60818759]
[1659310478846,0.43120616,23338.0,23335.0,16.03637359]
[1659310479331,0.43120616,23338.0,23335.0,15.96637359]
[1659310480006,0.43120616,23338.0,23335.0,16.03937359]
[1659310480484,0.0025,23338.0,23335.0,16.03937359]
[1659310481377,0.0025,23338.0,23335.0,15.96637359]
[1659310482059,0.0025,23338.0,23335.0,16.03937359]
[1659310483148,0.0025,23338.0,23335.0,15.96637359]
[1659310484006,0.0025,23338.0,23335.0,16.03937359]
[1659310485252,0.0025,23338.0,23335.0,15.96637359]
[1659310485891,0.0025,23338.0,23335.0,16.03937359]
[1659310487206,0.0025,23338.0,23335.0,15.96637359]
[1659310487862,0.0025,23338.0,23335.0,16.03937359]
[1659310488991,0.0025,23338.0,23335.0,16.49097359]
[1659310489629,0.0025,23338.0,23335.0,16.41797359]
[1659310489827,0.0025,23338.0,23335.0,16.49097359]
[1659310491204,0.0025,23338.0,23335.0,17.01967975]
[1659310491441,0.0025,23338.0,23335.0,17.06637359]
[1659310491658,0.0025,23338.0,23335.0,17.22987359]
[1659310491921,0.0025,23338.0,23335.0,16.59287359]
[1659310492827,0.0025,23338.0,23335.0,15.59415059]
[1659310493281,0.0025,23338.0,23335.0,15.53115059]
[1659310493496,0.0025,23338.0,23335.0,15.85224359]
[1659310493935,0.0025,23338.0,23335.0,15.93124359]
[1659310494157,0.0025,23338.0,23335.0,15.88124359]
[1659310494385,0.0025,23338.0,23335.0,15.77421059]
[1659310494602,0.0025,23338.0,23335.0,16.20231159]
[1659310495300,0.0025,23338.0,23335.0,16.12331159]